fUST/lending_fUST_20250720
["ID","MTS","AMOUNT","RATE_DAILY","PERIOD"]
[373324874,1752947439769,-500.0,0.00018856,2]
[373324876,1752947439778,-500.0,0.00018856,2]
[373324878,1752947439787,-500.0,0.00018856,2]
[373324880,1752947439796,-500.0,0.00018856,2]
[373324882,1752947439805,-500.0,0.00018856,2]
[373324884,1752947439815,-500.0,0.00018856,2]
[373324885,1752947439825,-500.0,0.00018856,2]
[373324888,1752947439834,-500.0,0.00018856,2]
[373324890,1752947439844,-500.0,0.00018856,2]
[373324892,1752947439853,-500.0,0.00018856,2]
[373324893,1752947439862,-500.0,0.00018856,2]
[373324896,1752947439871,-500.0,0.00018856,2]
[373324897,1752947439881,-500.0,0.00018856,2]
[373324899,1752947439891,-500.0,0.00018856,2]
[373324902,1752947439902,-500.0,0.00018856,2]
[373324904,1752947439911,-500.0,0.00018856,2]
[373324905,1752947439921,-500.0,0.00018856,2]
[373324908,1752947439931,-500.0,0.00018856,2]
[373324910,1752947439942,-500.0,0.00018856,2]
[373324911,1752947439952,-500.0,0.00018856,2]
[373324914,1752947439961,-500.0,0.00018856,2]
[373324916,1752947439972,-500.0,0.00018856,2]
[373324918,1752947439983,-500.0,0.00018856,2]
[373324920,1752947439993,-500.0,0.00018856,2]
[373324922,1752947440002,-500.0,0.00018856,2]
[373324924,1752947440014,-500.0,0.00018856,2]
[373324926,1752947440027,-567.06088141,0.00018856,2]
[373324928,1752947440037,-500.0,0.00018857,2]
[373324930,1752947440047,-500.0,0.00018857,2]
[373324932,1752947440056,-504.73741654,0.00018857,2]
[373324934,1752947440066,-800.0,0.00018872,2]
[373324936,1752947440075,-974.64,0.0001889,3]
[373324938,1752947440084,-487.32,0.0001889,3]
[373324940,1752947440094,-243.66,0.0001889,3]
[373324942,1752947440104,-731.0,0.0001889,3]
[373324944,1752947440113,-2610.04929806,0.000189,2]
[373324946,1752947440123,-5659.91675153,0.000189,2]
[373324948,1752947440133,-669.6,0.00018928,3]
[373324950,1752947440142,-326.6286965,0.00018937,2]
[373324952,1752947440152,-265.46431716,0.0001899,2]
[373324954,1752947440161,-500.0,0.00019005,2]
[373324956,1752947440171,-420.0,0.00019045,2]
[373324958,1752947440181,-160.0,0.00019049,2]
[373324960,1752947440191,-160.0,0.00019049,2]
[373324962,1752947440200,-160.0,0.0001905,2]
[373324964,1752947440209,-160.0,0.0001905,2]
[373324966,1752947440219,-160.0,0.0001905,2]
[373324968,1752947440228,-160.0,0.0001905,2]
[373324970,1752947440237,-215.67360783,0.0001905,2]
[373324972,1752947440246,-12612.80205064,0.0001905,2]
[373324974,1752947440255,-839.454303,0.0001905,2]
[373324976,1752947440264,-230.94145789,0.0001905,2]
[373324978,1752947440274,-160.0,0.0001905,2]
[373324980,1752947440284,-214.52603969,0.0001905,2]
[373324982,1752947440293,-476.34170116,0.0001905,2]
[373324984,1752947440302,-525.83049785,0.0001905,2]
[373324986,1752947440311,-160.0,0.0001905,2]
[373324989,1752947440323,-460.0,0.00019063,2]
[373324991,1752947440332,-460.0,0.00019063,2]
[373324993,1752947440342,-504.22089586,0.00019073,2]
[373324995,1752947440351,-500.0,0.00019073,2]
[373324997,1752947440362,-460.0,0.00019086,2]
[373324998,1752947440372,-783.79,0.00019086,2]
[373325001,1752947440382,-460.0,0.00019086,2]
[373325003,1752947440391,-651.34,0.00019087,2]
[373325005,1752947440400,-460.0,0.00019087,2]
[373325007,1752947440410,-460.0,0.00019087,2]
[373325009,1752947440419,-1120.52,0.00019087,2]
[373325011,1752947440429,-510.99,0.00019088,2]
[373325013,1752947440438,-460.0,0.00019088,2]
[373325015,1752947440447,-862.69,0.00019088,2]
[373325017,1752947440457,-407.6002156,0.00019089,2]
[373325019,1752947440466,-460.0,0.00019089,2]
[373325021,1752947440476,-460.0,0.00019089,2]
[373325023,1752947440486,-460.0,0.00019089,2]
[373325025,1752947440495,-656.09,0.00019089,2]
[373325027,1752947440504,-460.0,0.00019089,2]
[373325029,1752947440514,-460.0,0.0001909,2]
[373325031,1752947440523,-500.0,0.00019118,2]
[373325033,1752947440532,-5659.91675125,0.00019141,2]
[373325035,1752947440541,-311.845532,0.00019178,2]
[373325037,1752947440550,-666.0,0.00019178,2]
[373325039,1752947440560,-460.0,0.00019337,2]
[373325041,1752947440570,-460.0,0.00019337,2]
[373325043,1752947440578,-460.0,0.0001936,2]
[373325045,1752947440588,-783.79,0.0001936,2]
[373325047,1752947440598,-460.0,0.0001936,2]
[373325049,1752947440607,-651.34,0.00019361,2]
[373325051,1752947440616,-460.0,0.00019361,2]
[373325053,1752947440625,-460.0,0.00019361,2]
[373325055,1752947440635,-1120.52,0.00019361,2]
[373325057,1752947440644,-460.0,0.00019362,2]
[373325059,1752947440654,-862.69,0.00019362,2]
[373325061,1752947440664,-460.0,0.00019363,2]
[373325063,1752947440674,-460.0,0.00019363,2]
[373325065,1752947440683,-460.0,0.00019363,2]
[373325067,1752947440692,-656.09,0.00019363,2]
[373325069,1752947440702,-460.0,0.00019363,2]
[373325071,1752947440711,-460.0,0.00019364,2]
[373325073,1752947440721,-5659.91675125,0.00019383,2]
[373325075,1752947440731,-170.84609,0.00019452,2]
[373325077,1752947440740,-160.0,0.0001955,2]
[373325079,1752947440749,-460.0,0.00019611,2]
[373325081,1752947440759,-460.0,0.00019611,2]
[373325083,1752947440768,-5659.91675125,0.00019624,2]
[373325085,1752947440777,-460.0,0.00019634,2]
[373325087,1752947440787,-783.79,0.00019634,2]
[373325089,1752947440796,-460.0,0.00019634,2]
[373325091,1752947440805,-651.34,0.00019635,2]
[373325093,1752947440815,-476.14,0.00019635,2]
[373325095,1752947440824,-460.0,0.00019635,2]
[373325111,1752947440960,-1120.52,0.00019635,2]
[373325113,1752947440970,-862.69,0.00019636,2]
[373325115,1752947440980,-460.0,0.00019637,2]
[373325117,1752947440990,-460.0,0.00019637,2]
[373325119,1752947441000,-460.0,0.00019637,2]
[373325121,1752947441011,-656.09,0.00019637,2]
[373325123,1752947441021,-460.0,0.00019637,2]
[373325125,1752947441030,-460.0,0.00019638,2]
[373325127,1752947441039,-974.40545,0.00019698,2]
[373325129,1752947441049,-5659.91675125,0.00019866,2]
[373325131,1752947441059,-460.0,0.00019885,2]
[373325133,1752947441068,-460.0,0.00019908,2]
[373325135,1752947441078,-783.79,0.00019908,2]
[373325137,1752947441090,-460.0,0.00019908,2]
[373325139,1752947441100,-651.34,0.00019909,2]
[373325141,1752947441109,-460.0,0.00019909,2]
[373325143,1752947441118,-1120.52,0.00019909,2]
[373325145,1752947441128,-862.69,0.0001991,2]
[373325147,1752947441137,-460.0,0.00019911,2]
[373325149,1752947441147,-460.0,0.00019911,2]
[373325151,1752947441156,-170.20694749,0.00019911,2]
[373325153,1752947441165,-656.09,0.00019911,2]
[373325155,1752947441175,-460.0,0.00019911,2]
[373325157,1752947441184,-446.31,0.00019912,2]
[373325159,1752947441194,-215.0738,0.00019944,2]
[373325161,1752947441203,-265.46431716,0.00019968,2]
[373325163,1752947441212,-800.0,0.00019968,2]
[373325165,1752947441223,-86629.29424444,0.0001999,2]
[373325167,1752947441232,-11302.92806787,0.00020001,2]
[373325169,1752947441241,-260.0,0.00020098,2]
[373325171,1752947441250,-1000.0,0.00020101,2]
[373325173,1752947441259,-5659.91675125,0.00020107,2]
[373325175,1752947441269,-530.0,0.00020121,2]
[373325177,1752947441278,-151.0,0.00020121,2]
[373325179,1752947441287,-151.0,0.00020121,2]
[373325181,1752947441296,-151.0,0.00020121,2]
[373325183,1752947441306,-251.1537997,0.00020121,2]
[373325185,1752947441316,-480.0,0.00020121,2]
[373325187,1752947441326,-151.17869458,0.00020121,2]
[373325189,1752947441335,-151.0,0.00020121,2]
[373325191,1752947441345,-151.0,0.00020121,2]
[373325193,1752947441354,-151.0,0.00020121,2]
[373325195,1752947441364,-151.0,0.00020121,2]
[373325197,1752947441374,-151.0,0.00020121,2]
[373325199,1752947441383,-151.0,0.00020121,2]
[373325201,1752947441392,-151.0,0.00020121,2]
[373325203,1752947441401,-151.0,0.00020121,2]
[373325205,1752947441412,-305.31,0.00020182,2]
[373325207,1752947441421,-783.79,0.00020182,2]
[373325209,1752947441431,-582.40648344,0.00020182,2]
[373325211,1752947441441,-651.34,0.00020183,2]
[373325213,1752947441450,-460.0,0.00020183,2]
[373325215,1752947441460,-1120.52,0.00020183,2]
[373325217,1752947441470,-862.69,0.00020184,2]
[373325219,1752947441480,-460.0,0.00020185,2]
[373325221,1752947441489,-460.0,0.00020185,2]
[373325223,1752947441499,-656.09,0.00020185,2]
[373325225,1752947441510,-460.0,0.00020185,2]
[373325227,1752947441519,-340.048172,0.00020187,2]
[373325229,1752947441529,-1949.28,0.0002026,3]
[373325231,1752947441538,-974.64,0.0002026,3]
[373325233,1752947441548,-487.32,0.0002026,3]
[373325235,1752947441557,-387.83084799,0.00020277,2]
[373325237,1752947441566,-1339.2,0.00020298,3]
[373325239,1752947441576,-160.0,0.00020348,3]
[373325241,1752947441586,-12612.80205064,0.00020348,3]
[373325243,1752947441595,-476.34170116,0.00020348,3]
[373325245,1752947441604,-5659.91675125,0.00020348,3]
[373325247,1752947441614,-214.52603969,0.00020348,3]
[373325249,1752947441624,-530.0,0.00020395,2]
[373325251,1752947441633,-219.34497079,0.00020395,2]
[373325253,1752947441643,-480.0,0.00020395,2]
[373325255,1752947441652,-151.0,0.00020395,2]
[373325257,1752947441662,-151.0,0.00020395,2]
[373325259,1752947441672,-151.0,0.00020395,2]
[373325261,1752947441682,-245.0,0.00020395,2]
[373325263,1752947441692,-783.79,0.00020456,2]
[373325265,1752947441701,-651.34,0.00020457,2]
[373325267,1752947441711,-460.0,0.00020457,2]
[373325269,1752947441720,-1120.52,0.00020457,2]
[373325271,1752947441729,-862.69,0.00020458,2]
[373325273,1752947441738,-460.0,0.00020459,2]
[373325275,1752947441748,-460.0,0.00020459,2]
[373325277,1752947441758,-656.09,0.00020459,2]
[373325279,1752947441767,-460.0,0.00020459,2]
[373325281,1752947441776,-250.0,0.00020533,2]
[373325283,1752947441786,-571.55,0.00020574,2]
[373325285,1752947441796,-5659.91675125,0.0002059,3]
[373325287,1752947441805,-360.0,0.00020646,2]
[373325289,1752947441814,-530.0,0.00020669,2]
[373325291,1752947441824,-480.0,0.00020669,2]
[373325293,1752947441833,-198.0,0.00020669,2]
[373325295,1752947441843,-151.0,0.00020669,2]
[373325297,1752947441852,-198.0,0.00020669,2]
[373325299,1752947441861,-783.79,0.0002073,2]
[373325301,1752947441871,-651.34,0.00020731,2]
[373325303,1752947441880,-460.0,0.00020731,2]
[373325305,1752947441890,-1120.52,0.00020731,2]
[373325307,1752947441899,-862.69,0.00020732,2]
[373325309,1752947441908,-460.0,0.00020733,2]
[373325311,1752947441918,-460.0,0.00020733,2]
[373325313,1752947441927,-656.09,0.00020733,2]
[373325315,1752947441942,-460.0,0.00020733,2]
[373325317,1752947441951,-4669.18038667,0.00020735,2]
[373325319,1752947441960,-1303.681,0.00020735,2]
[373325321,1752947441970,-178.336,0.00020735,2]
[373325323,1752947441981,-170.84609,0.0002077,3]
[373325325,1752947441990,-587.0,0.00020792,2]
[373325327,1752947441999,-1662.71,0.000208,2]
[373325329,1752947442010,-151.0,0.00020831,2]
[373325331,1752947442019,-151.0,0.00020831,2]
[373325333,1752947442028,-5659.91675125,0.00020831,4]
[373325335,1752947442037,-17671.62993046,0.000209,3]
[373325337,1752947442047,-170.84609,0.00020922,2]
[373325339,1752947442057,-224.2,0.0002094,2]
[373325341,1752947442066,-530.0,0.00020943,2]
[373325343,1752947442075,-480.0,0.00020943,2]
[373325345,1752947442085,-220.44796763,0.00020943,2]
[373325347,1752947442095,-151.38205073,0.00020943,2]
[373325349,1752947442104,-151.0,0.00020943,2]
[373325351,1752947442114,-151.56803976,0.00020943,2]
[373325353,1752947442123,-151.0,0.00020943,2]
[373325355,1752947442132,-151.0,0.00020943,2]
[373325357,1752947442141,-151.0,0.00020943,2]
[373325359,1752947442150,-151.0,0.00020943,2]
[373325361,1752947442159,-151.0,0.00020943,2]
[373325363,1752947442169,-151.0,0.00020943,2]
[373325365,1752947442178,-265.46431716,0.00020945,2]
[373325367,1752947442187,-500.0,0.00020973,2]
[373325368,1752947442197,-348.63922981,0.00020973,2]
[373325371,1752947442206,-500.0,0.00020973,2]
[373325372,1752947442215,-500.0,0.00020973,2]
[373325374,1752947442225,-500.0,0.00020973,2]
[373325377,1752947442235,-500.0,0.00020973,2]
[373325379,1752947442245,-501.89293347,0.00020973,2]
[373325380,1752947442256,-500.0,0.00020973,2]
[373325382,1752947442265,-407.28226249,0.00020973,2]
[373325384,1752947442275,-1000.0,0.00020999,3]
[373325386,1752947442284,-1000.0,0.00020999,10]
[373325388,1752947442294,-99910.15511574,0.00021,4]
[373325391,1752947442304,-151.0,0.00021,2]
[373325393,1752947442314,-151.0,0.00021,2]
[373325395,1752947442323,-151.0,0.00021,2]
[373325397,1752947442333,-151.0,0.00021,2]
[373325399,1752947442343,-170.84609,0.00021,4]
[373325400,1752947442352,-151.0,0.00021,2]
[373325403,1752947442362,-151.0,0.00021,2]
[373325405,1752947442372,-202.13019808,0.00021,2]
[373325407,1752947442382,-1752.0,0.00021,2]
[373325410,1752947442392,-783.79,0.00021004,2]
[373325412,1752947442401,-651.34,0.00021005,2]
[373325414,1752947442411,-460.0,0.00021005,2]
[373325416,1752947442420,-1120.52,0.00021005,2]
[373325418,1752947442429,-862.69,0.00021006,2]
[373325420,1752947442439,-460.0,0.00021007,2]
[373325422,1752947442450,-460.0,0.00021007,2]
[373325424,1752947442460,-656.09,0.00021007,2]
[373325426,1752947442470,-460.0,0.00021007,2]
[373325428,1752947442480,-800.0,0.00021064,2]
[373325431,1752947442489,-5659.91675125,0.00021072,4]
[373325433,1752947442499,-836.0,0.00021147,2]
[373325435,1752947442509,-460.0,0.00021194,2]
[373325437,1752947442519,-836.0,0.000212,2]
[373325439,1752947442528,-836.0,0.00021202,2]
[373325441,1752947442538,-530.0,0.00021217,2]
[373325443,1752947442546,-480.0,0.00021217,2]
[373325445,1752947442556,-151.0,0.00021217,2]
[373325447,1752947442565,-155.7628533,0.00021233,2]
[373325449,1752947442575,-306.0,0.00021233,2]
[373325451,1752947442584,-153.0,0.00021233,2]
[373325453,1752947442594,-153.0,0.00021233,2]
[373325455,1752947442603,-153.0,0.00021233,2]
[373325457,1752947442613,-783.79,0.00021278,2]
[373325459,1752947442622,-651.34,0.00021279,2]
[373325461,1752947442631,-460.0,0.00021279,2]
[373325463,1752947442641,-1120.52,0.00021279,2]
[373325465,1752947442651,-154.60703084,0.0002128,2]
[373325467,1752947442660,-862.69,0.0002128,2]
[373325469,1752947442671,-460.0,0.00021281,2]
[373325471,1752947442680,-460.0,0.00021281,2]
[373325473,1752947442690,-656.09,0.00021281,2]
[373325475,1752947442700,-460.0,0.00021281,2]
[373325477,1752947442709,-836.0,0.00021306,2]
[373325479,1752947442720,-223.0315306,0.00021313,2]
[373325481,1752947442729,-5659.91675125,0.00021314,5]
[373325483,1752947442739,-836.0,0.00021424,2]
[373325485,1752947442750,-1000.0,0.00021489,3]
[373325487,1752947442759,-530.0,0.00021491,2]
[373325489,1752947442769,-480.0,0.00021491,2]
[373325491,1752947442778,-198.0,0.00021491,2]
[373325492,1752947442790,-10315.58859926,0.000215,2]
[373325493,1752947442799,-151.0,0.000215,2]
[373325494,1752947442808,-161.196177,0.000215,2]
[373325495,1752947442817,-161.196177,0.000215,2]
[373325496,1752947442826,-151.0,0.000215,2]
[373325497,1752947442835,-507.40545846,0.00021521,2]
[373325498,1752947442845,-1000.0,0.00021521,2]
[373325499,1752947442854,-1000.0,0.00021521,2]
[373325500,1752947442863,-1000.0,0.00021521,2]
[373325501,1752947442872,-1000.0,0.00021521,2]
[373325502,1752947442881,-783.79,0.00021552,2]
[373325503,1752947442890,-651.34,0.00021553,2]
[373325504,1752947442900,-460.0,0.00021553,2]
[373325505,1752947442909,-1120.52,0.00021553,2]
[373325506,1752947442918,-862.69,0.00021554,2]
[373325507,1752947442927,-460.0,0.00021555,2]
[373325508,1752947442940,-460.0,0.00021555,2]
[373325509,1752947442949,-656.09,0.00021555,2]
[373325510,1752947442959,-460.0,0.00021555,2]
[373325511,1752947442967,-5659.91675125,0.00021555,5]
[373325512,1752947442978,-1000.0,0.00021586,4]
[373325513,1752947442987,-571.33485352,0.00021606,2]
[373325514,1752947442997,-170.84609,0.00021625,4]
[373325515,1752947443007,-160.0,0.00021662,3]
[373325517,1752947443016,-1000.0,0.00021688,4]
[373325519,1752947443026,-11302.92806786,0.00021701,2]
[373325521,1752947443035,-1500.0,0.00021726,4]
[373325523,1752947443045,-560.0,0.00021742,2]
[373325525,1752947443054,-836.0,0.00021759,2]
[373325527,1752947443064,-530.0,0.00021765,2]
[373325529,1752947443073,-480.0,0.00021765,2]
[373325531,1752947443083,-836.0,0.00021766,2]
[373325533,1752947443092,-836.0,0.00021784,2]
[373325535,1752947443102,-5659.91675125,0.00021797,6]
[373325537,1752947443112,-836.0,0.00021812,2]
[373325539,1752947443121,-783.79,0.00021826,2]
[373325541,1752947443130,-651.34,0.00021827,2]
[373325543,1752947443138,-460.0,0.00021827,2]
[373325545,1752947443147,-1120.52,0.00021827,2]
[373325547,1752947443156,-862.69,0.00021828,2]
[373325550,1752947443166,-460.0,0.00021829,2]
[373325554,1752947443176,-460.0,0.00021829,2]
[373325556,1752947443186,-656.09,0.00021829,2]
[373325558,1752947443196,-460.0,0.00021829,2]
[373325560,1752947443205,-684.939,0.00021833,2]
[373325562,1752947443215,-2156.0,0.00021833,2]
[373325564,1752947443224,-968.0,0.00021833,2]
[373325566,1752947443233,-170.84609,0.00021845,3]
[373325567,1752947443243,-1500.0,0.00021848,2]
[373325570,1752947443252,-500.71124233,0.0002185,2]
[373325572,1752947443262,-161.54542214,0.0002185,2]
[373325575,1752947443271,-500.0,0.0002185,2]
[373325578,1752947443281,-540.13657752,0.0002185,2]
[373325581,1752947443290,-500.0,0.0002185,2]
[373325584,1752947443299,-500.0,0.0002185,2]
[373325587,1752947443309,-442.03826326,0.0002185,2]
[373325590,1752947443318,-500.0,0.0002185,2]
[373325592,1752947443328,-500.0,0.0002185,2]
[373325594,1752947443337,-500.0,0.0002185,2]
[373325596,1752947443346,-500.0,0.0002185,2]
[373325598,1752947443356,-501.69710347,0.0002185,2]
[373325600,1752947443365,-500.0,0.0002185,2]
[373325602,1752947443374,-500.0,0.0002185,2]
[373325604,1752947443384,-500.0,0.0002185,2]
[373325606,1752947443393,-836.0,0.00021877,2]
[373325608,1752947443404,-836.0,0.00021884,2]
[373325610,1752947443413,-500.0,0.00021889,2]
[373325612,1752947443423,-500.0,0.00021889,2]
[373325614,1752947443437,-836.0,0.00021903,2]
[373325616,1752947443447,-500.0,0.00021904,2]
[373325618,1752947443456,-500.0,0.00021917,2]
[373325620,1752947443465,-500.0,0.00021917,2]
[373325622,1752947443476,-500.0,0.00021917,2]
[373325624,1752947443486,-500.0,0.00021917,2]
[373325626,1752947443495,-500.0,0.00021917,2]
[373325628,1752947443505,-500.0,0.00021917,2]
[373325630,1752947443515,-500.0,0.00021917,2]
[373325632,1752947443523,-500.0,0.00021917,2]
[373325634,1752947443533,-500.0,0.00021917,2]
[373325636,1752947443542,-500.0,0.00021917,2]
[373325638,1752947443551,-500.0,0.00021917,2]
[373325640,1752947443560,-500.0,0.00021917,2]
[373325642,1752947443570,-500.0,0.00021917,2]
[373325644,1752947443580,-500.0,0.00021917,2]
[373325646,1752947443589,-500.0,0.00021917,2]
[373325648,1752947443600,-500.0,0.00021917,2]
[373325650,1752947443609,-500.0,0.00021917,2]
[373325652,1752947443619,-153.0,0.00021918,2]
[373325654,1752947443628,-153.0,0.00021918,2]
[373325656,1752947443638,-153.0,0.00021918,2]
[373325658,1752947443647,-153.0,0.00021918,2]
[373325660,1752947443657,-153.0,0.00021918,2]
[373325662,1752947443667,-153.0,0.00021918,2]
[373325664,1752947443678,-153.0,0.00021918,2]
[373325666,1752947443689,-153.0,0.00021918,2]
[373325668,1752947443699,-153.0,0.00021918,2]
[373325670,1752947443709,-153.0,0.00021918,2]
[373325672,1752947443719,-153.0,0.00021918,2]
[373325674,1752947443728,-153.0,0.00021918,2]
[373325676,1752947443738,-153.0,0.00021918,2]
[373325678,1752947443748,-153.0,0.00021918,2]
[373325680,1752947443757,-153.0,0.00021918,2]
[373325682,1752947443767,-153.0,0.00021918,2]
[373325684,1752947443776,-153.0,0.00021918,2]
[373325686,1752947443785,-153.0,0.00021918,2]
[373325688,1752947443794,-153.0,0.00021918,2]
[373325690,1752947443804,-153.0,0.00021918,2]
[373325692,1752947443813,-153.0,0.00021918,2]
[373325694,1752947443823,-153.0,0.00021918,2]
[373325696,1752947443832,-153.0,0.00021918,2]
[373325698,1752947443842,-153.0,0.00021918,2]
[373325700,1752947443851,-153.0,0.00021918,2]
[373325702,1752947443861,-153.0,0.00021918,2]
[373325704,1752947443870,-153.0,0.00021918,2]
[373325706,1752947443880,-153.0,0.00021918,2]
[373325708,1752947443890,-153.0,0.00021918,2]
[373325710,1752947443899,-153.0,0.00021918,2]
[373325712,1752947443908,-153.0,0.00021918,2]
[373325714,1752947443918,-153.0,0.00021918,2]
[373325716,1752947443927,-153.0,0.00021918,2]
[373325718,1752947443940,-153.0,0.00021918,2]
[373325720,1752947443950,-153.0,0.00021918,2]
[373325722,1752947443959,-153.0,0.00021918,2]
[373325724,1752947443969,-153.0,0.00021918,2]
[373325726,1752947443979,-153.0,0.00021918,2]
[373325728,1752947443988,-153.0,0.00021918,2]
[373325730,1752947443998,-153.0,0.00021918,2]
[373325732,1752947444010,-153.0,0.00021918,2]
[373325734,1752947444021,-153.0,0.00021918,2]
[373325736,1752947444031,-153.0,0.00021918,2]
[373325738,1752947444041,-153.0,0.00021918,2]
[373325740,1752947444051,-153.0,0.00021918,2]
[373325742,1752947444060,-153.0,0.00021918,2]
[373325756,1752947444182,-153.0,0.00021918,2]
[373325758,1752947444192,-153.0,0.00021918,2]
[373325760,1752947444202,-153.0,0.00021918,2]
[373325762,1752947444212,-153.0,0.00021918,2]
[373325764,1752947444222,-153.0,0.00021918,2]
[373325766,1752947444231,-153.0,0.00021918,2]
[373325768,1752947444241,-153.0,0.00021918,2]
[373325770,1752947444251,-153.0,0.00021918,2]
[373325772,1752947444260,-153.0,0.00021918,2]
[373325774,1752947444270,-153.0,0.00021918,2]
[373325776,1752947444280,-153.0,0.00021918,2]
[373325778,1752947444289,-153.0,0.00021918,2]
[373325780,1752947444298,-153.0,0.00021918,2]
[373325782,1752947444308,-153.0,0.00021918,2]
[373325784,1752947444317,-153.0,0.00021918,2]
[373325786,1752947444327,-153.0,0.00021918,2]
[373325788,1752947444336,-153.0,0.00021918,2]
[373325790,1752947444346,-153.0,0.00021918,2]
[373325792,1752947444356,-153.0,0.00021918,2]
[373325794,1752947444366,-153.0,0.00021918,2]
[373325796,1752947444375,-153.0,0.00021918,2]
[373325799,1752947444386,-153.0,0.00021918,2]
[373325800,1752947444395,-153.0,0.00021918,2]
[373325802,1752947444404,-153.0,0.00021918,2]
[373325804,1752947444413,-153.0,0.00021918,2]
[373325806,1752947444423,-153.0,0.00021918,2]
[373325808,1752947444433,-153.0,0.00021918,2]
[373325810,1752947444442,-153.0,0.00021918,2]
[373325812,1752947444452,-153.0,0.00021918,2]
[373325814,1752947444462,-153.0,0.00021918,2]
[373325816,1752947444472,-153.0,0.00021918,2]
[373325818,1752947444481,-153.0,0.00021918,2]
[373325820,1752947444490,-153.0,0.00021918,2]
[373325822,1752947444500,-153.0,0.00021918,2]
[373325824,1752947444509,-153.0,0.00021918,2]
[373325826,1752947444519,-153.0,0.00021918,2]
[373325828,1752947444528,-153.0,0.00021918,2]
[373325830,1752947444538,-153.0,0.00021918,2]
[373325832,1752947444547,-153.0,0.00021918,2]
[373325834,1752947444556,-153.0,0.00021918,2]
[373325836,1752947444566,-153.0,0.00021918,2]
[373325838,1752947444582,-153.0,0.00021918,2]
[373325840,1752947444594,-153.0,0.00021918,2]
[373325842,1752947444604,-153.0,0.00021918,2]
[373325844,1752947444613,-153.0,0.00021918,2]
[373325846,1752947444623,-153.0,0.00021918,2]
[373325848,1752947444632,-153.0,0.00021918,2]
[373325850,1752947444642,-153.0,0.00021918,2]
[373325852,1752947444651,-153.0,0.00021918,2]
[373325854,1752947444661,-153.0,0.00021918,2]
[373325856,1752947444670,-153.0,0.00021918,2]
[373325858,1752947444679,-153.0,0.00021918,2]
[373325860,1752947444688,-153.0,0.00021918,2]
[373325862,1752947444698,-153.0,0.00021918,2]
[373325864,1752947444708,-153.0,0.00021918,2]
[373325866,1752947444718,-153.0,0.00021918,2]
[373325868,1752947444728,-153.0,0.00021918,2]
[373325870,1752947444737,-153.0,0.00021918,2]
[373325872,1752947444748,-153.0,0.00021918,2]
[373325874,1752947444758,-153.0,0.00021918,2]
[373325877,1752947444768,-153.0,0.00021918,2]
[373325878,1752947444777,-153.0,0.00021918,2]
[373325881,1752947444787,-153.0,0.00021918,2]
[373325883,1752947444796,-150.0,0.00021918,2]
[373325884,1752947444806,-200.0,0.00021918,2]
[373325886,1752947444814,-150.0,0.00021918,2]